[Event "Fagernes Chess Open 2025"]
[Site "Fagernes"]
[Date "2025.04.14"]
[Round "2.9"]
[White "Yilmaz, Kazim"]
[Black "Gilsdottir, Sara"]
[Result "1/2-1/2"]
[Annotator "NA COMBH"]
[ECO "D02"]
[WhiteElo "1818"]
[BlackElo "1738"]
[PlyCount "91"]
[EventDate "2025.04.12"]
[EventCountry "NOR"]
[SourceTitle "playchess.com"]
[Source "ChessBase"]
[SourceQuality "1"]
[TimeControl "40/6000+30:2400+30"]

1. Nf3 {[%emt 0:00:01]} d5 {[%emt 0:01:07]} 2. Nc3 {[%emt 0:00:04]} Nf6 {[%emt 0:00:40]} 3. d4 {[%emt 0:00:06]} c5 {[%emt 0:02:54]} 4. Bf4 {[%emt 0:00:16]} Nc6 {[%emt 0:01:34]} 5. e3 {[%emt 0:00:10]} Bg4 {[%emt 0:03:15]} 6. Bb5 {[%emt 0:00:17]} e6 {[%emt 0:03:48]} 7. O-O {[%emt 0:00:09]} cxd4 {[%emt 0:06:20]} 8. exd4 {[%emt 0:00:09]} Bb4 {[%emt 0:05:28]} 9. Bg5 {[%emt 0:01:22]} O-O {[%emt 0:05:07]} 10. Bxc6 {[%emt 0:01:20]} bxc6 {[%emt 0:00:17]} 11. a3 {[%emt 0:00:27]} Be7 {[%emt 0:03:25]} 12. Re1 {[%emt 0:00:32]} c5 {[%emt 0:11:28]} 13. dxc5 {[%emt 0:01:40]} Bxc5 {[%emt 0:01:57]} 14. Qe2 {[%emt 0:00:12]} Re8 {[%emt 0:05:01]} 15. Rad1 {[%emt 0:00:44]} Be7 {[%emt 0:05:32]} 16. h3 {[%emt 0:00:30]} Bh5 {[%emt 0:00:44]} 17. g4 {[%emt 0:00:44]} Bg6 {[%emt 0:05:51]} 18. Ne5 {[%emt 0:00:24]} Rc8 {[%emt 0:04:27]} 19. Nxg6 {[%emt 0:00:20]} hxg6 {[%emt 0:00:41]} 20. Rd3 {[%emt 0:01:44]} Qc7 {[%emt 0:07:54]} 21. h4 {[%emt 0:01:44]} Qc4 {[%emt 0:09:16]} 22. Rg3 {[%emt 0:01:15]} Bd6 {[%emt 0:03:49]} 23. Rg2 {[%emt 0:01:02]} a6 {[%emt 0:01:22]} 24. h5 {[%emt 0:01:13]} Qxe2 {[%emt 0:06:23]} 25. Rxe2 {[%emt 0:00:22]} Rc4 {[%emt 0:00:28]} 26. Bxf6 {[%emt 0:00:47]} gxf6 {[%emt 0:00:09]} 27. Nxd5 {[%emt 0:00:16]} Kg7 {[%emt 0:01:43]} 28. Ne3 {[%emt 0:00:29]} Rc5 {[%emt 0:00:38]} 29. b4 {[%emt 0:00:37]} Rc3 {[%emt 0:01:13]} 30. Rd2 {[%emt 0:01:01]} Bf4 {[%emt 0:01:07]} 31. Rd3 {[%emt 0:01:27]} Rec8 {[%emt 0:00:10]} 32. hxg6 {[%emt 0:01:32]} Rxd3 {[%emt 0:01:55]} 33. cxd3 {[%emt 0:00:21]} fxg6 {[%emt 0:00:06]} 34. Kf1 {[%emt 0:03:49]} Rc3 {[%emt 0:00:18]} 35. Ke2 {[%emt 0:01:20]} Rxa3 {[%emt 0:01:12]} 36. Rg1 {[%emt 0:00:28]} Bxe3 {[%emt 0:03:01]} 37. fxe3 {[%emt 0:00:10]} Rb3 {[%emt 0:00:05]} 38. Ra1 {[%emt 0:00:10]} Rxb4 {[%emt 0:00:19]} 39. Rxa6 {[%emt 0:00:07]} Kf7 {[%emt 0:03:29]} 40. Ra7+ {[%emt 0:00:18]} Kf8 {[%emt 0:02:29]} 41. Ra6 {[%emt 0:40:20]} Kf7 {[%emt 0:41:01]} 42. Ra7+ {[%emt 0:00:07]} Kf8 {[%emt 0:00:00]} 43. Ra6 {[%emt 0:00:00]} Kf7 {[%emt 0:00:00]} 44. Ra7+ {[%emt 0:00:00]} Kf8 {[%emt 0:00:00]} 45. Ra6 {[%emt 0:00:00]} Kf7 {[%emt 0:00:00]} 46. Ra7+ {[%emt 0:00:00]} 1/2-1/2

[Event "Fagernes Chess Open 2025"]
[Site "Fagernes"]
[Date "2025.04.14"]
[Round "2.10"]
[White "Lien, Benjamin"]
[Black "Lysen, Terje Kevin G"]
[Result "0-1"]
[Annotator "NA COMBH"]
[ECO "B15"]
[WhiteElo "1733"]
[BlackElo "1667"]
[PlyCount "54"]
[EventDate "2025.04.12"]
[EventCountry "NOR"]
[SourceTitle "playchess.com"]
[Source "ChessBase"]
[SourceQuality "1"]
[TimeControl "40/6000+30:2400+30"]

1. e4 {[%emt 0:05:57]} c6 {[%emt 0:00:09]} 2. d4 {[%emt 0:01:20]} d5 {[%emt 0:00:08]} 3. Nc3 {[%emt 0:00:18]} dxe4 {[%emt 0:00:06]} 4. Nxe4 {[%emt 0:00:05]} Nf6 {[%emt 0:00:08]} 5. Nxf6+ {[%emt 0:00:33]} exf6 {[%emt 0:00:09]} 6. c3 {[%emt 0:00:20]} Bd6 {[%emt 0:00:50]} 7. Bd3 {[%emt 0:00:18]} O-O {[%emt 0:00:57]} 8. Qc2 {[%emt 0:00:10]} Re8+ {[%emt 0:00:26]} 9. Ne2 {[%emt 0:00:13]} h5 {[%emt 0:00:19]} 10. Be3 {[%emt 0:04:30]} a5 {[%emt 0:09:36]} 11. a4 {[%emt 0:09:10]} h4 {[%emt 0:12:09]} 12. Bf5 {[%emt 0:15:45]} Na6 {[%emt 0:19:02]} 13. O-O-O {[%emt 0:12:29]} b5 {[%emt 0:06:00]} 14. d5 {[%emt 0:05:13]} Bxf5 {[%emt 0:19:28]} 15. Qxf5 {[%emt 0:00:06]} Qe7 {[%emt 0:00:40]} 16. Rd4 {[%emt 0:14:47]} Bc5 {[%emt 0:16:50]} 17. Rhd1 {[%emt 0:00:21]} Bxd4 {[%emt 0:00:08]} 18. Rxd4 {[%emt 0:00:07]} Qe5 {[%emt 0:00:40]} 19. Qf3 {[%emt 0:03:06]} g5 {[%emt 0:02:38]} 20. g3 {[%emt 0:01:18]} h3 {[%emt 0:13:09]} 21. Qh5 {[%emt 0:20:16]} Nc5 {[%emt 0:01:13]} 22. Rg4 {[%emt 0:07:39]} Nd3+ {[%emt 0:03:00]} 23. Kb1 {[%emt 0:00:06]} Nxf2 {[%emt 0:00:22]} 24. Bxf2 {[%emt 0:07:35]} Qxe2 {[%emt 0:00:45]} 25. Bd4 {[%emt 0:00:03]} Qd1+ {[%emt 0:00:12]} 26. Ka2 {[%emt 0:00:12]} Qxa4+ {[%emt 0:00:04]} 27. Kb1 {[%emt 0:00:04]} Re1# {[%emt 0:00:07]} 0-1

[Event "Fagernes Chess Open 2025"]
[Site "Fagernes"]
[Date "2025.04.14"]
[Round "2.11"]
[White "Brattgjerd, August Minh"]
[Black "Jorgensen, Catherine"]
[Result "1-0"]
[Annotator "NA COMBH"]
[ECO "A45"]
[WhiteElo "1845"]
[BlackElo "1609"]
[PlyCount "65"]
[EventDate "2025.04.12"]
[EventCountry "NOR"]
[SourceTitle "playchess.com"]
[Source "ChessBase"]
[SourceQuality "1"]
[TimeControl "40/6000+30:2400+30"]

1. d4 {[%emt 0:02:43]} Nf6 {[%emt 0:00:15]} 2. Bf4 {[%emt 0:00:19]} c5 {[%emt 0:00:37]} 3. c3 {[%emt 0:00:38]} Qb6 {[%emt 0:00:40]} 4. Qb3 {[%emt 0:00:08]} Qxb3 {[%emt 0:00:53]} 5. axb3 {[%emt 0:00:04]} cxd4 {[%emt 0:00:07]} 6. cxd4 {[%emt 0:02:04]} Nc6 {[%emt 0:01:07]} 7. Nf3 {[%emt 0:00:19]} Nd5 {[%emt 0:02:15]} 8. Bd2 {[%emt 0:01:01]} Ndb4 {[%emt 0:01:53]} 9. Na3 {[%emt 0:01:08]} d5 {[%emt 0:04:57]} 10. e3 {[%emt 0:01:49]} a6 {[%emt 0:01:32]} 11. Be2 {[%emt 0:02:19]} Bf5 {[%emt 0:02:16]} 12. O-O {[%emt 0:02:05]} e6 {[%emt 0:01:45]} 13. Nh4 {[%emt 0:05:42]} Bd3 {[%emt 0:03:29]} 14. Rfe1 {[%emt 0:11:24]} Be7 {[%emt 0:03:30]} 15. Bxb4 {[%emt 0:03:04]} Nxb4 {[%emt 0:01:02]} 16. Nf3 {[%emt 0:01:29]} O-O {[%emt 0:02:57]} 17. Bxd3 {[%emt 0:01:10]} Nxd3 {[%emt 0:00:20]} 18. Red1 {[%emt 0:00:46]} Nb4 {[%emt 0:01:27]} 19. Rac1 {[%emt 0:15:59]} Rac8 {[%emt 0:07:48]} 20. Ne1 {[%emt 0:05:18]} Rc6 {[%emt 0:07:12]} 21. Rxc6 {[%emt 0:01:33]} bxc6 {[%emt 0:00:32]} 22. Rc1 {[%emt 0:00:41]} Rc8 {[%emt 0:06:43]} 23. Nac2 {[%emt 0:02:07]} Nxc2 {[%emt 0:03:08]} 24. Rxc2 {[%emt 0:02:21]} c5 {[%emt 0:02:51]} 25. Nd3 {[%emt 0:02:19]} c4 {[%emt 0:01:17]} 26. bxc4 {[%emt 0:02:05]} dxc4 {[%emt 0:00:13]} 27. b3 {[%emt 0:10:50]} c3 {[%emt 0:00:47]} 28. Nc5 {[%emt 0:02:49]} a5 {[%emt 0:09:09]} 29. Rxc3 {[%emt 0:01:54]} e5 {[%emt 0:03:26]} 30. Kf1 {[%emt 0:10:01]} exd4 {[%emt 0:04:19]} 31. exd4 {[%emt 0:01:32]} Bf6 {[%emt 0:00:25]} 32. Rc4 {[%emt 0:00:45]} Kf8 {[%emt 0:01:09]} 33. Nd7+ {[%emt 0:00:32]} 1-0

[Event "Fagernes Chess Open 2025"]
[Site "Fagernes"]
[Date "2025.04.14"]
[Round "2.12"]
[White "Warstad, Leif E"]
[Black "Digernes, Mikael"]
[Result "0-1"]
[Annotator "NA COMBH"]
[ECO "E43"]
[WhiteElo "1606"]
[BlackElo "1781"]
[PlyCount "76"]
[EventDate "2025.04.12"]
[EventCountry "NOR"]
[SourceTitle "playchess.com"]
[Source "ChessBase"]
[SourceQuality "1"]
[TimeControl "40/6000+30:2400+30"]

1. d4 {[%emt 0:00:06]} Nf6 {[%emt 0:00:14]} 2. Nf3 {[%emt 0:00:04]} b6 {[%emt 0:00:17]} 3. c4 {[%emt 0:00:26]} Bb7 {[%emt 0:00:10]} 4. Nc3 {[%emt 0:00:09]} e6 {[%emt 0:00:19]} 5. e3 {[%emt 0:00:11]} Bb4 {[%emt 0:00:50]} 6. Be2 {[%emt 0:02:46]} Ne4 {[%emt 0:02:22]} 7. Qb3 {[%emt 0:00:23]} Bxc3+ {[%emt 0:00:09]} 8. bxc3 {[%emt 0:00:10]} d6 {[%emt 0:03:25]} 9. Bb2 {[%emt 0:03:23]} O-O {[%emt 0:01:41]} 10. O-O {[%emt 0:00:10]} Nd7 {[%emt 0:06:33]} 11. Rad1 {[%emt 0:02:42]} Qe7 {[%emt 0:01:36]} 12. Qc2 {[%emt 0:06:47]} f5 {[%emt 0:04:33]} 13. Ne1 {[%emt 0:14:43]} Qg5 {[%emt 0:05:34]} 14. Bf3 {[%emt 0:04:14]} a5 {[%emt 0:19:26]} 15. a4 {[%emt 0:00:34]} Rae8 {[%emt 0:04:18]} 16. Be2 {[%emt 0:05:17]} Qh6 {[%emt 0:10:07]} 17. Bc1 {[%emt 0:02:42]} Rc8 {[%emt 0:04:38]} 18. f3 {[%emt 0:10:06]} Nef6 {[%emt 0:00:37]} 19. e4 {[%emt 0:03:22]} f4 {[%emt 0:00:42]} 20. Nd3 {[%emt 0:02:55]} e5 {[%emt 0:00:26]} 21. Ba3 {[%emt 0:03:18]} c5 {[%emt 0:02:11]} 22. d5 {[%emt 0:04:16]} g5 {[%emt 0:02:21]} 23. Nf2 {[%emt 0:00:35]} Qg6 {[%emt 0:03:20]} 24. Rb1 {[%emt 0:01:15]} Rb8 {[%emt 0:00:08]} 25. Rfe1 {[%emt 0:03:35]} h5 {[%emt 0:00:49]} 26. Qd1 {[%emt 0:01:12]} Rf7 {[%emt 0:02:39]} 27. Rb2 {[%emt 0:05:11]} Bc8 {[%emt 0:04:54]} 28. Kh1 {[%emt 0:03:20]} Nf8 {[%emt 0:03:39]} 29. h3 {[%emt 0:07:21]} Rfb7 {[%emt 0:06:45]} 30. Rb1 {[%emt 0:04:45]} Bd7 {[%emt 0:00:56]} 31. Bd3 {[%emt 0:04:51]} g4 {[%emt 0:01:32]} 32. fxg4 {[%emt 0:02:14]} hxg4 {[%emt 0:00:07]} 33. hxg4 {[%emt 0:00:38]} Bxg4 {[%emt 0:02:38]} 34. Be2 {[%emt 0:06:47]} Bxe2 {[%emt 0:02:37]} 35. Qxe2 {[%emt 0:00:16]} Rg7 {[%emt 0:04:15]} 36. Qf3 {[%emt 0:01:43]} Qh6+ {[%emt 0:04:04]} 37. Kg1 {[%emt 0:00:21]} Rg3 {[%emt 0:00:35]} 38. Qd1 {[%emt 0:02:45]} f3 0-1

[Event "Fagernes Chess Open 2025"]
[Site "Fagernes"]
[Date "2025.04.14"]
[Round "2.13"]
[White "Nebell, Anne Grete"]
[Black "Johansson, Henrik"]
[Result "1-0"]
[Annotator "NA COMBH"]
[ECO "B01"]
[WhiteElo "1561"]
[BlackElo "1730"]
[PlyCount "123"]
[EventDate "2025.04.12"]
[EventCountry "NOR"]
[SourceTitle "playchess.com"]
[Source "ChessBase"]
[SourceQuality "1"]
[TimeControl "40/6000+30:2400+30"]

1. e4 {[%emt 0:00:06]} d5 {[%emt 0:00:54]} 2. exd5 {[%emt 0:00:12]} Nf6 {[%emt 0:00:41]} 3. Bb5+ {[%emt 0:00:13]} Nbd7 {[%emt 0:00:45]} 4. d4 {[%emt 0:00:57]} a6 {[%emt 0:04:39]} 5. Be2 {[%emt 0:00:24]} Nb6 {[%emt 0:01:33]} 6. c4 {[%emt 0:01:19]} e6 {[%emt 0:03:09]} 7. dxe6 {[%emt 0:01:46]} Bxe6 {[%emt 0:03:22]} 8. d5 {[%emt 0:02:06]} Bf5 {[%emt 0:03:15]} 9. Nf3 {[%emt 0:03:46]} Bb4+ {[%emt 0:03:58]} 10. Nc3 {[%emt 0:00:58]} Ne4 {[%emt 0:03:47]} 11. Qd4 {[%emt 0:02:36]} Nxc3 {[%emt 0:06:33]} 12. bxc3 {[%emt 0:00:58]} Be7 {[%emt 0:00:38]} 13. O-O {[%emt 0:01:38]} O-O {[%emt 0:01:54]} 14. Bf4 {[%emt 0:01:02]} Re8 {[%emt 0:06:55]} 15. Rfe1 {[%emt 0:04:34]} Bf6 {[%emt 0:04:10]} 16. Be5 {[%emt 0:03:26]} Bxe5 {[%emt 0:13:14]} 17. Nxe5 {[%emt 0:00:20]} Qg5 {[%emt 0:02:43]} 18. Nf3 {[%emt 0:04:36]} Qh6 {[%emt 0:02:35]} 19. Bd3 {[%emt 0:02:07]} Bg6 {[%emt 0:03:55]} 20. h3 {[%emt 0:02:14]} Rad8 {[%emt 0:02:34]} 21. Rxe8+ {[%emt 0:01:34]} Rxe8 {[%emt 0:00:27]} 22. Bxg6 {[%emt 0:04:14]} Qxg6 {[%emt 0:00:35]} 23. Rd1 {[%emt 0:05:31]} Re4 {[%emt 0:04:37]} 24. Re1 {[%emt 0:03:19]} Rxe1+ 25. Nxe1 {[%emt 0:00:11]} Qb1 {[%emt 0:01:14]} 26. Qe5 {[%emt 0:02:46]} g6 {[%emt 0:04:03]} 27. c5 {[%emt 0:04:50]} Nc4 {[%emt 0:01:45]} 28. Qe8+ {[%emt 0:03:19]} Kg7 {[%emt 0:00:06]} 29. Qe2 {[%emt 0:00:44]} Nb2 {[%emt 0:00:50]} 30. Kh2 {[%emt 0:00:44]} Nd1 {[%emt 0:01:08]} 31. Nf3 {[%emt 0:01:16]} Qc1 {[%emt 0:00:42]} 32. d6 {[%emt 0:04:25]} cxd6 {[%emt 0:02:08]} 33. cxd6 {[%emt 0:00:17]} Qf4+ {[%emt 0:00:28]} 34. Kg1 {[%emt 0:01:35]} Qxd6 {[%emt 0:00:22]} 35. c4 {[%emt 0:02:41]} Nc3 {[%emt 0:00:32]} 36. Qb2 {[%emt 0:01:12]} Qd1+ {[%emt 0:01:26]} 37. Kh2 {[%emt 0:00:26]} Qd6+ {[%emt 0:00:28]} 38. g3 {[%emt 0:03:43]} Qf6 {[%emt 0:00:52]} 39. Kg2 {[%emt 0:03:05]} Ne4 {[%emt 0:02:03]} 40. Qxb7 {[%emt 0:01:28]} Nc5 {[%emt 0:00:40]} 41. Qd5 {[%emt 0:40:49]} Ne6 {[%emt 0:41:45]} 42. Qe5 {[%emt 0:04:38]} Qxe5 {[%emt 0:01:29]} 43. Nxe5 {[%emt 0:00:08]} Nc5 {[%emt 0:00:38]} 44. Kf3 {[%emt 0:03:09]} f6 {[%emt 0:02:38]} 45. Nc6 {[%emt 0:00:24]} Kf7 {[%emt 0:00:47]} 46. Ke3 {[%emt 0:00:23]} Ke6 {[%emt 0:01:13]} 47. Kd4 {[%emt 0:01:17]} Kd6 {[%emt 0:00:40]} 48. Na5 {[%emt 0:01:41]} Ne6+ {[%emt 0:00:45]} 49. Kc3 {[%emt 0:00:58]} Ng5 {[%emt 0:02:00]} 50. Kd4 {[%emt 0:00:54]} Nxh3 {[%emt 0:01:22]} 51. c5+ {[%emt 0:00:20]} Kc7 {[%emt 0:00:40]} 52. f4 {[%emt 0:00:37]} Nf2 {[%emt 0:01:35]} 53. Kd5 {[%emt 0:00:38]} f5 {[%emt 0:01:30]} 54. Nc6 {[%emt 0:00:27]} Ne4 {[%emt 0:01:16]} 55. Nb4 {[%emt 0:02:33]} a5 {[%emt 0:02:32]} 56. Nc6 {[%emt 0:02:29]} a4 {[%emt 0:01:28]} 57. Na7 {[%emt 0:01:25]} Nxg3 {[%emt 0:01:55]} 58. Nb5+ {[%emt 0:00:07]} Kd7 {[%emt 0:02:20]} 59. c6+ {[%emt 0:00:14]} Kc8 {[%emt 0:00:54]} 60. c7 {[%emt 0:02:09]} Ne4 {[%emt 0:03:57]} 61. Kc6 {[%emt 0:00:44]} h5 {[%emt 0:00:00]} 62. Na7# {[%emt 0:00:00]} 1-0

[Event "Fagernes Chess Open 2025"]
[Site "Fagernes"]
[Date "2025.04.14"]
[Round "2.14"]
[White "Lang, Gusztav Jr"]
[Black "Ruud, Mikael"]
[Result "1-0"]
[Annotator "NA COMBH"]
[ECO "B75"]
[WhiteElo "1729"]
[BlackElo "1588"]
[PlyCount "39"]
[EventDate "2025.04.12"]
[EventCountry "NOR"]
[SourceTitle "playchess.com"]
[Source "ChessBase"]
[SourceQuality "1"]
[TimeControl "40/6000+30:2400+30"]

1. e4 {[%emt 0:04:27]} c5 {[%emt 0:00:50]} 2. Nf3 {[%emt 0:00:06]} Nc6 {[%emt 0:00:05]} 3. d4 {[%emt 0:00:15]} cxd4 {[%emt 0:00:06]} 4. Nxd4 {[%emt 0:00:03]} Nf6 {[%emt 0:00:11]} 5. Nc3 {[%emt 0:00:10]} d6 {[%emt 0:00:06]} 6. Be3 {[%emt 0:02:29]} g6 {[%emt 0:00:59]} 7. f3 {[%emt 0:00:27]} Bg7 {[%emt 0:00:07]} 8. Qd2 {[%emt 0:00:24]} O-O {[%emt 0:00:14]} 9. O-O-O {[%emt 0:00:25]} Bd7 {[%emt 0:01:12]} 10. Kb1 {[%emt 0:01:22]} a6 {[%emt 0:03:07]} 11. g4 {[%emt 0:02:11]} h5 {[%emt 0:11:16]} 12. h3 {[%emt 0:38:26]} Nxd4 {[%emt 0:19:48]} 13. Bxd4 {[%emt 0:00:00]} Nh7 {[%emt 0:09:29]} 14. Bxg7 {[%emt 0:00:00]} Kxg7 {[%emt 0:00:07]} 15. gxh5 {[%emt 0:00:00]} g5 {[%emt 0:01:04]} 16. h4 {[%emt 0:00:00]} f6 {[%emt 0:01:26]} 17. Rg1 {[%emt 0:00:00]} Kh8 {[%emt 0:01:03]} 18. hxg5 {[%emt 0:00:00]} fxg5 {[%emt 0:01:10]} 19. Qd4+ {[%emt 0:04:36]} Kg8 {[%emt 0:00:06]} 20. Bc4+ {[%emt 0:01:39]} 1-0

[Event "Fagernes Chess Open 2025"]
[Site "Fagernes"]
[Date "2025.04.14"]
[Round "2.15"]
[White "Vatneodegard, Marie"]
[Black "Odden, Jan Ove"]
[Result "0-1"]
[Annotator "NA COMBH"]
[ECO "C80"]
[WhiteElo "1538"]
[BlackElo "1720"]
[PlyCount "84"]
[EventDate "2025.04.12"]
[EventCountry "NOR"]
[SourceTitle "playchess.com"]
[Source "ChessBase"]
[SourceQuality "1"]
[TimeControl "40/6000+30:2400+30"]

1. e4 {[%emt 0:00:06]} e5 {[%emt 0:00:05]} 2. Nf3 {[%emt 0:00:15]} Nc6 {[%emt 0:00:06]} 3. Bb5 {[%emt 0:00:14]} a6 {[%emt 0:00:18]} 4. Ba4 {[%emt 0:00:33]} Nf6 {[%emt 0:00:17]} 5. O-O {[%emt 0:00:48]} Nxe4 {[%emt 0:00:13]} 6. d4 {[%emt 0:04:35]} d5 {[%emt 0:01:24]} 7. Nxe5 {[%emt 0:02:06]} b5 {[%emt 0:11:31]} 8. Nxc6 {[%emt 0:05:33]} Qd6 {[%emt 0:02:23]} 9. Bb3 {[%emt 0:01:24]} Qxc6 {[%emt 0:00:40]} 10. Nd2 {[%emt 0:06:08]} Nxd2 {[%emt 0:03:01]} 11. Bxd2 {[%emt 0:00:57]} Be6 {[%emt 0:02:14]} 12. c3 {[%emt 0:00:47]} Bd6 {[%emt 0:01:03]} 13. Qf3 {[%emt 0:03:43]} Kd7 {[%emt 0:14:36]} 14. Bf4 {[%emt 0:16:47]} h6 {[%emt 0:02:36]} 15. Rfe1 {[%emt 0:06:21]} Bxf4 {[%emt 0:05:54]} 16. Qxf4 {[%emt 0:00:17]} Qd6 {[%emt 0:00:39]} 17. Qf3 {[%emt 0:02:09]} c6 {[%emt 0:05:04]} 18. Bc2 {[%emt 0:00:56]} Rae8 {[%emt 0:06:06]} 19. Bf5 {[%emt 0:05:13]} Rhf8 {[%emt 0:08:09]} 20. Qh3 {[%emt 0:10:10]} Kd8 {[%emt 0:04:41]} 21. Bxe6 {[%emt 0:00:38]} Rxe6 {[%emt 0:00:32]} 22. Rxe6 {[%emt 0:05:29]} Qxe6 {[%emt 0:00:29]} 23. Qxe6 {[%emt 0:00:21]} fxe6 {[%emt 0:00:05]} 24. Re1 {[%emt 0:00:16]} Kd7 {[%emt 0:00:25]} 25. a3 {[%emt 0:00:11]} Kd6 {[%emt 0:00:23]} 26. b4 {[%emt 0:03:56]} Rf5 {[%emt 0:03:15]} 27. f3 {[%emt 0:05:56]} e5 {[%emt 0:06:17]} 28. dxe5+ {[%emt 0:02:52]} Rxe5 {[%emt 0:03:29]} 29. Rd1 {[%emt 0:01:09]} Re3 {[%emt 0:00:35]} 30. Rc1 {[%emt 0:07:44]} Re2 {[%emt 0:02:28]} 31. h3 {[%emt 0:00:33]} Ra2 {[%emt 0:00:13]} 32. g4 {[%emt 0:00:25]} Rxa3 {[%emt 0:00:23]} 33. Kf2 {[%emt 0:00:19]} a5 {[%emt 0:00:31]} 34. bxa5 {[%emt 0:01:38]} Rxa5 {[%emt 0:00:13]} 35. f4 {[%emt 0:00:18]} Ra4 {[%emt 0:00:17]} 36. Kf3 {[%emt 0:00:38]} Rc4 {[%emt 0:00:16]} 37. f5 {[%emt 0:00:58]} b4 {[%emt 0:00:21]} 38. h4 {[%emt 0:05:33]} Rxc3+ {[%emt 0:01:17]} 39. Rxc3 {[%emt 0:01:13]} bxc3 {[%emt 0:00:06]} 40. Ke3 {[%emt 0:00:09]} Ke5 {[%emt 0:00:14]} 41. Kd3 {[%emt 0:40:50]} d4 {[%emt 0:40:16]} 42. h5 {[%emt 0:10:32]} Kf4 {[%emt 0:01:52]} 0-1

[Event "Fagernes Chess Open 2025"]
[Site "Fagernes"]
[Date "2025.04.14"]
[Round "2.16"]
[White "Smedsrud, Morten S"]
[Black "Holten, Terje"]
[Result "1-0"]
[Annotator "NA COMBH"]
[ECO "A34"]
[WhiteElo "1699"]
[BlackElo "1566"]
[PlyCount "65"]
[EventDate "2025.04.12"]
[EventCountry "NOR"]
[SourceTitle "playchess.com"]
[Source "ChessBase"]
[SourceQuality "1"]
[TimeControl "40/6000+30:2400+30"]

1. c4 {[%emt 0:00:07]} e5 {[%emt 0:00:06]} 2. g3 {[%emt 0:00:16]} c5 {[%emt 0:00:44]} 3. Bg2 {[%emt 0:02:35]} Nf6 {[%emt 0:00:37]} 4. Nc3 {[%emt 0:00:27]} d6 {[%emt 0:00:56]} 5. Nf3 {[%emt 0:00:21]} Nc6 {[%emt 0:02:03]} 6. O-O {[%emt 0:01:25]} Be7 {[%emt 0:00:59]} 7. d3 {[%emt 0:00:40]} O-O {[%emt 0:00:49]} 8. Bg5 {[%emt 0:03:04]} Be6 {[%emt 0:06:26]} 9. Ne1 {[%emt 0:03:28]} Rb8 {[%emt 0:02:55]} 10. Nc2 {[%emt 0:00:26]} h6 {[%emt 0:00:29]} 11. Bxf6 {[%emt 0:00:06]} Bxf6 {[%emt 0:00:07]} 12. Ne3 {[%emt 0:00:24]} Ne7 {[%emt 0:04:04]} 13. Rb1 {[%emt 0:10:02]} Qd7 {[%emt 0:04:23]} 14. Re1 {[%emt 0:07:01]} a6 {[%emt 0:04:53]} 15. Ned5 {[%emt 0:05:12]} Nxd5 {[%emt 0:01:44]} 16. Nxd5 {[%emt 0:00:11]} Bg5 {[%emt 0:02:17]} 17. b4 {[%emt 0:09:50]} cxb4 {[%emt 0:06:37]} 18. Rxb4 {[%emt 0:04:20]} Bd8 {[%emt 0:03:57]} 19. Nb6 {[%emt 0:07:37]} Qe7 {[%emt 0:02:57]} 20. Qb3 {[%emt 0:05:56]} f5 {[%emt 0:10:57]} 21. Rb1 {[%emt 0:09:55]} f4 {[%emt 0:05:31]} 22. Nd5 {[%emt 0:01:48]} Qf7 {[%emt 0:02:08]} 23. Rxb7 {[%emt 0:04:50]} Rxb7 {[%emt 0:00:34]} 24. Qxb7 {[%emt 0:00:08]} fxg3 {[%emt 0:00:48]} 25. Qxf7+ {[%emt 0:01:05]} Bxf7 {[%emt 0:02:04]} 26. hxg3 {[%emt 0:02:29]} Bh5 {[%emt 0:04:21]} 27. Kf1 {[%emt 0:07:16]} Re8 {[%emt 0:05:02]} 28. Rb7 {[%emt 0:07:02]} Bg6 {[%emt 0:02:34]} 29. Rd7 {[%emt 0:04:38]} a5 {[%emt 0:02:38]} 30. Rxd6 {[%emt 0:01:48]} Bf7 {[%emt 0:00:27]} 31. Nc3 {[%emt 0:03:28]} Kf8 {[%emt 0:00:52]} 32. Bc6 {[%emt 0:02:19]} Ke7 {[%emt 0:01:28]} 33. Bxe8 {[%emt 0:00:01]} 1-0